bitfinex/quotes_BTCUSD_20241101
["timestamp","ask_amount","ask_price","bid_price","bid_amount"]
[1730426734205,0.154585,69163.0,69146.0,4.995e-05]
[1730426734467,0.29304025,69163.0,69146.0,4.995e-05]
[1730426734689,0.144594,69159.0,69146.0,4.995e-05]
[1730426734935,0.13845525,69159.0,69149.0,0.144615]
[1730426735161,0.005,69163.0,69146.0,4.995e-05]
[1730426735416,0.28913,69173.0,69144.0,0.290066]
[1730426735417,0.005,69179.0,69172.0,0.002]
[1730426735671,0.01,69179.0,69172.0,0.001]
[1730426735910,0.005,69164.0,69153.0,0.002]
[1730426736139,0.144563,69174.0,69168.0,0.21560708]
[1730426736387,0.21560708,69172.0,69164.0,0.002]
[1730426736606,0.14345525,69171.0,69165.0,0.0146588]
[1730426736835,0.14345525,69171.0,69164.0,0.002]
[1730426736836,0.13845525,69171.0,69164.0,0.002]
[1730426737056,0.50340092,69170.0,69164.0,0.002]
[1730426737289,0.144579,69167.0,69162.0,0.002]
[1730426737510,0.14322184,69170.0,69162.0,0.002]
[1730426737748,0.144562,69175.0,69172.0,0.002]
[1730426737972,0.13845525,69174.0,69172.0,0.002]
[1730426738196,0.13845525,69174.0,69169.0,0.002]
[1730426738445,0.00476659,69173.0,69162.0,0.144587]
[1730426738669,0.00476659,69173.0,69168.0,0.002]
[1730426738913,0.00476659,69173.0,69172.0,0.002]
[1730426739146,0.21560708,69185.0,69174.0,0.002]
[1730426739392,0.21560708,69185.0,69184.0,0.002]
[1730426739851,0.22060708,69194.0,69184.0,0.002]
[1730426740081,0.13845525,69193.0,69184.0,0.002]
[1730426740310,0.005,69201.0,69184.0,0.25360746]
[1730426740578,0.21560708,69200.0,69199.0,0.002]
[1730426740810,0.21560708,69200.0,69197.0,0.002]
[1730426741075,0.005,69203.0,69197.0,0.002]
[1730426741313,0.13845525,69203.0,69197.0,0.002]
[1730426741550,0.005,69212.0,69203.0,0.144502]
[1730426741789,0.21560708,69207.0,69201.0,0.144504]
[1730426742034,0.21560708,69207.0,69197.0,0.002]
[1730426742035,0.21560708,69202.0,69197.0,0.002]
[1730426742262,0.005,69182.0,69176.0,0.21560708]
[1730426742489,0.0751,69197.0,69176.0,0.21560708]
[1730426742490,0.144556,69177.0,69176.0,0.21560708]
[1730426742720,0.154556,69177.0,69176.0,0.21560708]
[1730426742932,0.294117,69176.0,69167.0,0.21560708]
[1730426743172,0.005,69176.0,69167.0,0.23724979]
[1730426743416,0.289123,69175.0,69167.0,0.02164271]
[1730426743660,0.144558,69176.0,69163.0,0.144585]
[1730426743893,0.144564,69174.0,69161.0,0.14459]
[1730426744136,0.005,69176.0,69165.0,0.21560708]
[1730426744415,0.13845525,69175.0,69151.0,0.28922]
[1730426744644,0.13845525,69175.0,69172.0,0.002]
[1730426744862,0.00487258,69174.0,69165.0,0.144581]
[1730426745070,0.00487258,69174.0,69167.0,0.144577]
[1730426745402,0.005,69178.0,69170.0,0.144569]
[1730426745617,0.289065,69189.0,69166.0,0.03610081]
[1730426745618,0.01,69194.0,69179.0,0.144552]
[1730426745829,0.01,69194.0,69171.0,0.00289125]
[1730426745830,0.00487258,69177.0,69176.0,0.144558]
[1730426746044,0.21560708,69185.0,69184.0,0.002]
[1730426746261,0.21560708,69185.0,69178.0,0.144553]
[1730426746477,0.00487258,69185.0,69176.0,0.12359045]
[1730426746682,0.00487258,69185.0,69177.0,0.29065537]
[1730426746884,0.144515,69197.0,69177.0,0.13845525]
[1730426747090,0.144518,69196.0,69191.0,0.002]
[1730426747300,0.0047747,69192.0,69188.0,0.144533]
[1730426747529,0.21560708,69201.0,69188.0,0.289066]
[1730426747741,0.21560708,69201.0,69184.0,0.289082]
[1730426747742,0.21560708,69201.0,69184.0,0.289084]
[1730426747952,0.0047747,69200.0,69184.0,0.13845525]
[1730426748215,0.21560708,69194.0,69192.0,0.002]
[1730426748421,0.0047747,69200.0,69178.0,0.03371457]
[1730426748422,0.289029,69197.0,69188.0,0.002]
[1730426748632,0.289038,69195.0,69188.0,0.002]
[1730426748849,0.14322995,69196.0,69192.0,0.002]
[1730426749022,0.21560708,69194.0,69190.0,0.002]
[1730426749266,0.0047747,69194.0,69190.0,0.002]
[1730426749485,0.0047747,69194.0,69190.0,0.0166537]
[1730426749716,0.1492967,69194.0,69190.0,0.0166537]
[1730426749926,0.0047747,69194.0,69190.0,0.0166537]
[1730426750138,0.144527,69191.0,69190.0,0.0166537]
[1730426750342,0.144522,69194.0,69190.0,0.002]
[1730426750548,0.42748925,69196.0,69190.0,0.002]
[1730426750549,0.0047747,69191.0,69190.0,0.002]
[1730426750758,0.289038,69195.0,69190.0,0.002]
[1730426750974,0.289038,69195.0,69192.0,0.002]
[1730426751195,0.289021,69199.0,69190.0,0.002]
[1730426751426,0.144483,69213.0,69195.0,0.289038]
[1730426751647,0.21560708,69213.0,69209.0,0.002]
[1730426752334,0.00496163,69212.0,69209.0,0.002]
[1730426752583,0.00496163,69212.0,69211.0,0.144485]
[1730426752789,0.144459,69224.0,69214.0,0.144479]
[1730426753000,0.21560708,69222.0,69211.0,0.15922145]
[1730426753219,0.21560708,69222.0,69212.0,0.144483]
[1730426753220,0.144465,69221.0,69212.0,0.144483]
[1730426753444,0.21560708,69222.0,69218.0,0.002]
[1730426753660,0.21560708,69222.0,69211.0,0.01473745]
[1730426753661,0.00496163,69220.0,69219.0,0.002]
[1730426753897,0.04093201,69239.0,69220.0,0.002]
[1730426753898,0.00664,69231.0,69220.0,0.002]
[1730426754108,0.00664,69231.0,69215.0,0.28895]
[1730426754109,0.22060708,69229.0,69215.0,0.28895]
[1730426754334,0.00496163,69228.0,69217.0,0.144472]
[1730426754558,0.144455,69226.0,69217.0,0.144472]
[1730426754763,0.50950708,69229.0,69217.0,0.144472]
[1730426754980,0.50950708,69229.0,69220.0,0.002]
[1730426754981,0.00496163,69225.0,69220.0,0.002]
[1730426755207,0.288917,69224.0,69220.0,0.002]
[1730426755424,0.00496163,69224.0,69220.0,0.002]
[1730426755642,0.00496163,69224.0,69211.0,0.23034453]
[1730426755643,0.00496163,69224.0,69223.0,0.002]
[1730426756128,0.00164,69231.0,69228.0,0.144449]
[1730426756554,0.00164,69231.0,69227.0,0.002]
[1730426756765,0.00164,69231.0,69223.0,0.14446]
[1730426756986,0.00164,69231.0,69230.0,0.002]
[1730426757403,0.42898325,69231.0,69223.0,0.002]
[1730426757610,0.144453,69227.0,69219.0,0.21560708]
[1730426757834,0.00164,69231.0,69220.0,0.06490281]
[1730426758051,0.00164,69231.0,69224.0,0.144457]
[1730426758264,0.00164,69231.0,69227.0,0.144452]
[1730426758490,0.00164,69231.0,69223.0,0.144459]
[1730426758699,0.14009525,69231.0,69223.0,0.002]
[1730426758908,0.14009525,69231.0,69228.0,0.002]
[1730426758909,0.288896,69229.0,69228.0,0.002]
[1730426759142,0.433344,69229.0,69228.0,0.002]
[1730426759774,0.144448,69229.0,69228.0,0.002]
[1730426760191,0.13536525,69229.0,69223.0,0.002]
[1730426760430,0.0495,69229.0,69223.0,0.002]
[1730426760663,0.0495,69229.0,69224.0,0.02176071]
[1730426760881,0.0495,69229.0,69228.0,0.002]
[1730426761317,0.0495,69229.0,69220.0,0.002]
[1730426761318,0.293904,69227.0,69220.0,0.002]
[1730426761541,0.144478,69215.0,69208.0,0.21560708]
[1730426761760,0.144479,69214.0,69213.0,0.002]
[1730426761979,0.144479,69214.0,69209.0,0.002]
[1730426761980,0.0495,69214.0,69209.0,0.002]
[1730426762186,0.144483,69212.0,69211.0,0.002]
[1730426763267,0.144496,69206.0,69205.0,0.002]
[1730426763515,0.288979,69209.0,69197.0,0.21560708]
[1730426763727,0.0545,69214.0,69212.0,0.002]
[1730426763938,0.64905108,69213.0,69212.0,0.002]
[1730426764143,0.64905108,69213.0,69198.0,0.02156071]
[1730426764144,0.288963,69213.0,69207.0,0.002]
[1730426764366,0.144491,69208.0,69207.0,0.002]
[1730426764827,0.28862922,69213.0,69198.0,0.31058171]
[1730426765035,0.144482,69213.0,69204.0,0.21560708]
[1730426765241,0.144482,69213.0,69201.0,0.289013]
[1730426765242,0.0495,69214.0,69213.0,0.002]
[1730426765569,0.0495,69214.0,69213.0,0.146481]
[1730426765756,0.0495,69214.0,69213.0,0.002]
[1730426766169,0.0495,69214.0,69206.0,0.288991]
[1730426766170,0.0495,69214.0,69207.0,0.144492]
[1730426766374,0.0495,69214.0,69213.0,0.146481]
[1730426766778,0.0495,69214.0,69206.0,0.288991]
[1730426766779,0.005,69208.0,69185.0,0.002]
[1730426766982,0.144523,69193.0,69192.0,0.21560708]
[1730426767199,0.0495,69193.0,69184.0,0.002]
[1730426767412,0.05467805,69193.0,69180.0,0.21560708]
[1730426767631,0.28905,69192.0,69180.0,0.02156071]
[1730426767825,0.144533,69189.0,69188.0,0.002]
[1730426768031,0.0495,69193.0,69176.0,0.289113]
[1730426768239,0.00517805,69189.0,69188.0,0.002]
[1730426768443,0.28905,69192.0,69188.0,0.002]
[1730426768640,0.14970905,69189.0,69188.0,0.002]
[1730426768845,0.144531,69189.0,69188.0,0.002]
[1730426769023,0.14970905,69189.0,69188.0,0.002]
[1730426769929,0.00517805,69189.0,69188.0,0.002]
[1730426770135,0.00517805,69189.0,69188.0,0.146533]
[1730426770353,0.00517805,69189.0,69188.0,0.1900946]
[1730426770565,0.0495,69193.0,69192.0,0.144525]
[1730426770739,0.22060708,69214.0,69189.0,0.289063]
[1730426770740,0.21560708,69195.0,69194.0,0.002]
[1730426770950,0.0495,69206.0,69205.0,0.002]
[1730426771589,0.0495,69206.0,69201.0,0.002]
[1730426771792,0.0495,69206.0,69198.0,0.002]
[1730426772195,0.144506,69202.0,69201.0,0.002]
[1730426772402,0.0495,69206.0,69205.0,0.002]
[1730426773030,0.0495,69206.0,69205.0,0.0166501]
[1730426773237,0.0495,69206.0,69205.0,0.146498]
[1730426773433,0.21560708,69212.0,69210.0,0.144486]
[1730426773572,0.21560708,69212.0,69206.0,0.002]
[1730426773768,0.21560708,69212.0,69211.0,0.002]
[1730426773769,0.36009208,69212.0,69211.0,0.002]
[1730426773997,0.144485,69212.0,69211.0,0.002]
[1730426774210,0.14447,69219.0,69216.0,0.002]
[1730426774372,0.22060708,69217.0,69216.0,0.002]
[1730426774756,0.149474,69217.0,69206.0,0.28899]
[1730426774992,0.0495,69221.0,69205.0,0.00082]
[1730426774993,0.0495,69221.0,69220.0,0.146466]
[1730426775147,0.0495,69221.0,69220.0,0.002]
[1730426775304,0.0495,69221.0,69215.0,0.144477]
[1730426775519,0.0495,69221.0,69216.0,0.144473]
[1730426775741,0.0495,69221.0,69220.0,0.002]
[1730426775945,0.0495,69221.0,69210.0,0.002]
[1730426775946,0.0495,69221.0,69216.0,0.288949]
[1730426776146,0.0495,69221.0,69217.0,0.1733669]
[1730426776346,0.0495,69221.0,69217.0,0.144472]
[1730426776646,0.0495,69221.0,69220.0,0.002]
[1730426777116,0.0495,69221.0,69215.0,0.144476]
[1730426777347,0.0495,69221.0,69216.0,0.144474]
[1730426777552,0.0495,69221.0,69220.0,0.002]
[1730426778007,0.193964,69221.0,69220.0,0.002]
[1730426778472,0.193964,69221.0,69191.0,0.002]
[1730426778473,0.288936,69220.0,69213.0,0.002]
[1730426778737,0.01,69212.0,69202.0,0.002]
[1730426778950,0.01,69212.0,69197.0,0.21560708]
[1730426778951,0.288975,69210.0,69206.0,0.21560708]
[1730426779178,0.149496,69206.0,69202.0,0.002]
[1730426779383,0.33745125,69206.0,69198.0,0.21560708]
[1730426779614,0.34245125,69206.0,69173.0,0.36017008]
[1730426779825,0.005,69187.0,69184.0,0.21560708]
[1730426780035,1.13827795,69186.0,69184.0,0.21560708]
[1730426780244,0.5754053,69186.0,69174.0,0.002]
[1730426780460,0.5754053,69186.0,69168.0,0.002]
[1730426780461,0.68056504,69186.0,69168.0,0.002]
[1730426780689,0.005,69175.0,69159.0,0.21560708]
[1730426780925,0.144577,69167.0,69166.0,0.23724979]
[1730426781152,0.144577,69167.0,69165.0,0.002]
[1730426781153,0.144579,69166.0,69165.0,0.002]
[1730426781395,0.144581,69165.0,69162.0,0.002]
[1730426781821,0.14950605,69165.0,69162.0,0.002]
[1730426782480,0.14950605,69165.0,69164.0,0.00282]
[1730426782713,0.21560708,69171.0,69164.0,0.00282]
[1730426782714,0.18,69186.0,69185.0,0.14454]
[1730426782915,0.21560708,69199.0,69185.0,0.14454]
[1730426782916,0.21560708,69192.0,69187.0,0.28907]
[1730426783140,0.21560708,69192.0,69191.0,0.002]
[1730426783364,0.21560708,69199.0,69198.0,0.002]
[1730426783580,0.576104,69205.0,69204.0,0.002]
[1730426784076,0.288941,69219.0,69216.0,0.002]
[1730426784077,0.21560708,69219.0,69216.0,0.002]
[1730426784300,0.35406233,69219.0,69216.0,0.002]
[1730426784534,0.21560708,69226.0,69217.0,0.002]
[1730426784762,0.144462,69222.0,69221.0,0.002]
[1730426785003,0.005,69224.0,69223.0,0.002]
[1730426785253,0.576104,69228.0,69223.0,0.002]
[1730426785521,0.576104,69228.0,69216.0,0.0146484]
[1730426785522,0.576104,69228.0,69217.0,0.50455308]
[1730426785745,0.576104,69228.0,69227.0,0.002]
[1730426786004,0.576104,69228.0,69227.0,0.146452]
[1730426786742,0.00164,69229.0,69228.0,0.14645]
[1730426788155,0.00164,69229.0,69228.0,0.002]
[1730426788419,0.00164,69229.0,69217.0,0.0997]
[1730426788420,0.005,69228.0,69217.0,0.21560708]
[1730426788639,0.005,69217.0,69216.0,0.002]
[1730426788889,0.144481,69213.0,69212.0,0.002]
[1730426789127,0.865033,69221.0,69201.0,0.002]
[1730426789128,0.005,69210.0,69201.0,0.002]
[1730426789380,0.005,69210.0,69200.0,0.21560708]
[1730426789381,0.144506,69201.0,69200.0,0.21560708]
[1730426789607,0.72061,69201.0,69200.0,0.21560708]
[1730426789832,0.72061,69201.0,69199.0,0.002]
[1730426789833,0.144508,69200.0,69199.0,0.002]
[1730426790073,0.13845525,69200.0,69199.0,0.002]
[1730426790364,0.28296325,69200.0,69199.0,0.002]
[1730426790603,0.28296325,69200.0,69160.0,0.04300289]
[1730426790604,0.144518,69196.0,69195.0,0.002]
[1730426790843,0.28297325,69196.0,69195.0,0.002]
[1730426791090,0.144517,69196.0,69195.0,0.002]
[1730426791322,0.144517,69196.0,69178.0,0.289109]
[1730426791323,0.13845525,69196.0,69184.0,0.21560708]
[1730426791576,0.289046,69193.0,69185.0,0.02156071]
[1730426791804,0.289046,69193.0,69184.0,0.21560708]
[1730426791805,0.144521,69194.0,69192.0,0.002]
[1730426792062,0.144523,69193.0,69192.0,0.002]
[1730426793019,0.144523,69193.0,69177.0,0.50471708]
[1730426793020,0.13845525,69193.0,69191.0,0.002]
[1730426793244,0.13845525,69193.0,69177.0,0.50471708]
[1730426793245,0.144527,69191.0,69190.0,0.002]
[1730426793472,0.28298225,69191.0,69190.0,0.002]
[1730426793715,0.13845525,69191.0,69186.0,0.21560708]
[1730426794014,0.005,69195.0,69194.0,0.002]
[1730426794231,0.005,69212.0,69186.0,0.21560708]
[1730426794232,0.005,69205.0,69195.0,0.144517]
[1730426794443,0.21560708,69200.0,69197.0,0.002]
[1730426794654,0.144511,69199.0,69197.0,0.002]
[1730426794868,0.144494,69207.0,69197.0,0.0166523]
[1730426795078,0.288983,69209.0,69197.0,0.0166523]
[1730426795079,0.144512,69198.0,69197.0,0.002]
[1730426795304,0.13845525,69200.0,69191.0,0.50465808]
[1730426795511,0.28296325,69200.0,69199.0,0.002]
[1730426795935,0.288959,69214.0,69200.0,0.144508]
[1730426795936,0.005,69213.0,69200.0,0.144508]
[1730426796153,0.005,69205.0,69204.0,0.002]
[1730426796589,0.005,69212.0,69198.0,0.50462808]
[1730426796813,0.576104,69213.0,69199.0,0.00289002]
[1730426796814,0.79671108,69213.0,69199.0,0.00289002]
[1730426797024,0.576104,69213.0,69212.0,0.002]
[1730426797233,0.576104,69213.0,69209.0,0.144489]
[1730426797474,0.576104,69213.0,69201.0,0.289013]
[1730426797475,0.576104,69213.0,69210.0,0.1589359]
[1730426797689,0.576104,69213.0,69212.0,0.146483]
[1730426798127,0.288912,69225.0,69222.0,0.002]
[1730426798381,0.21560708,69230.0,69222.0,0.144461]
[1730426798382,0.21560708,69223.0,69222.0,0.144461]
[1730426798598,0.22060708,69230.0,69220.0,0.002]
[1730426798599,0.146088,69229.0,69221.0,0.144462]
[1730426798845,0.146088,69229.0,69214.0,0.21560708]
[1730426798846,0.00164,69229.0,69214.0,0.21560708]
[1730426799049,0.00164,69229.0,69228.0,0.002]
[1730426799290,0.00664,69229.0,69225.0,0.002]
[1730426799509,0.00164,69229.0,69225.0,0.002]
[1730426799739,0.00164,69229.0,69227.0,0.144451]
[1730426800191,0.00164,69229.0,69223.0,0.288917]
[1730426800415,0.00164,69229.0,69224.0,0.0288917]
[1730426800554,0.00164,69229.0,69228.0,0.002]
[1730426800759,0.00164,69229.0,69225.0,0.144455]
[1730426800965,0.00164,69229.0,69228.0,0.002]
[1730426801216,0.00164,69229.0,69214.0,0.21560708]
[1730426801414,0.005,69224.0,69223.0,0.002]
[1730426801657,0.14345525,69224.0,69223.0,0.002]
[1730426801846,0.28791325,69224.0,69223.0,0.002]
[1730426803047,0.28791325,69224.0,69216.0,0.002]
[1730426803048,0.144473,69217.0,69216.0,0.002]
[1730426803258,0.005,69210.0,69203.0,0.002]
[1730426803464,0.144491,69208.0,69203.0,0.002]
[1730426803666,0.28294625,69208.0,69203.0,0.002]
[1730426803879,0.28294625,69208.0,69207.0,0.002]
[1730426804090,0.144498,69205.0,69204.0,0.002]
[1730426804326,0.005,69198.0,69197.0,0.0025]
[1730426804541,0.86407125,69198.0,69197.0,0.0005]
[1730426805200,0.720616,69198.0,69197.0,0.0005]
[1730426805438,0.725616,69198.0,69197.0,0.0005]
[1730426806933,0.86407125,69198.0,69197.0,0.0005]
[1730426809613,0.87716468,69198.0,69197.0,0.0005]
[1730426809870,0.98216468,69198.0,69197.0,0.0005]
[1730426810072,0.98216468,69198.0,69162.0,0.002]
[1730426810073,0.149554,69178.0,69162.0,0.002]
[1730426810291,0.86411325,69178.0,69162.0,0.002]
[1730426810732,0.249571,69170.0,69156.0,0.002]
[1730426810939,0.66731195,69170.0,69150.0,0.21560708]
[1730426811170,0.68039648,69170.0,69150.0,0.21560708]
[1730426811373,0.68039648,69170.0,69150.0,0.21760708]
[1730426811789,0.28302625,69170.0,69150.0,0.21760708]
[1730426812033,0.005,69183.0,69150.0,0.21760708]
[1730426812034,0.289121,69175.0,69161.0,0.289176]
[1730426812263,0.005,69189.0,69175.0,0.002]
[1730426812480,0.005,69191.0,69177.0,0.002]
[1730426812720,0.144541,69185.0,69177.0,0.146556]
[1730426812967,0.144535,69187.0,69186.0,0.002]
[1730426813176,0.144548,69181.0,69180.0,0.002]
[1730426813380,0.144558,69176.0,69175.0,0.002]
[1730426814240,0.0863,69165.0,69164.0,0.00082]
[1730426814436,0.74862195,69165.0,69164.0,0.00082]
[1730426814643,0.7566874,69165.0,69164.0,0.00082]
[1730426814843,0.7636874,69165.0,69164.0,0.00082]
[1730426815062,0.7616874,69165.0,69164.0,0.00082]
[1730426815275,0.7616874,69165.0,69145.0,0.31160712]
[1730426815276,0.005,69146.0,69145.0,0.31160712]
[1730426815441,1.13346595,69146.0,69145.0,0.31160712]
[1730426816046,1.23846595,69146.0,69145.0,0.31160712]
[1730426816227,1.45013212,69146.0,69145.0,0.28268212]
[1730426816434,1.42713212,69146.0,69145.0,0.28268212]
[1730426817068,1.44016623,69146.0,69145.0,0.28268212]
[1730426817268,1.42713212,69146.0,69145.0,0.16698212]
[1730426817469,1.44015429,69146.0,69145.0,0.16698212]
[1730426817828,1.44215429,69146.0,69145.0,0.16698212]
[1730426818254,1.42713212,69146.0,69145.0,0.16698212]
[1730426818478,1.32613212,69146.0,69145.0,0.16698212]
[1730426818713,1.33113212,69146.0,69145.0,0.16698212]
[1730426818914,1.33313212,69146.0,69145.0,0.16698212]
[1730426819171,1.33313212,69146.0,69129.0,0.21642508]
[1730426819172,0.115,69136.0,69129.0,0.21642508]
[1730426819377,0.66238295,69136.0,69129.0,0.21642508]
[1730426819599,0.66738295,69136.0,69129.0,0.000818]
[1730426820016,0.66238295,69136.0,69129.0,0.000818]
[1730426820239,0.66738295,69136.0,69129.0,0.000818]
[1730426820475,0.65738295,69136.0,69129.0,0.000818]
[1730426821960,0.28309725,69136.0,69129.0,0.000818]
[1730426822169,0.28809725,69136.0,69129.0,0.000818]
[1730426822572,0.28309725,69136.0,69129.0,0.000818]
[1730426822724,0.28809725,69136.0,69129.0,0.000818]
[1730426823730,0.289259,69142.0,69131.0,0.0929]
[1730426823938,0.21560708,69150.0,69137.0,0.144639]
[1730426824164,0.001644,69138.0,69135.0,0.225561]
[1730426824407,0.001644,69138.0,69135.0,0.080918]
[1730426824627,0.001644,69138.0,69137.0,0.14464]
[1730426824828,0.001644,69138.0,69136.0,0.144641]
[1730426825083,0.001644,69138.0,69135.0,0.080918]
[1730426825285,0.001644,69138.0,69135.0,0.225562]
[1730426825708,0.001644,69138.0,69136.0,0.144641]
[1730426826338,0.001644,69138.0,69135.0,0.080918]
[1730426826339,0.001644,69138.0,69137.0,0.14464]
[1730426826530,0.001644,69138.0,69135.0,0.080918]
[1730426826776,0.001644,69138.0,69135.0,0.22556]
[1730426826984,0.001644,69138.0,69136.0,0.14464]
[1730426827315,0.001644,69138.0,69135.0,0.080918]
[1730426827515,0.21560708,69169.0,69164.0,0.0943]
[1730426828232,0.21560708,69176.0,69164.0,0.0943]
[1730426828407,0.21560708,69176.0,69175.0,0.14456]
[1730426828638,0.21560708,69176.0,69165.0,0.289159]
[1730426828855,0.21560708,69176.0,69164.0,0.0993]
[1730426828856,0.005,69171.0,69164.0,0.0943]
[1730426829025,0.005,69171.0,69150.0,0.005]
[1730426829026,0.289239,69147.0,69143.0,0.21560708]
[1730426829252,0.144625,69144.0,69143.0,0.21560708]
[1730426829472,0.005,69155.0,69143.0,0.23716779]
[1730426829665,0.144611,69151.0,69145.0,0.144622]
[1730426829793,0.22060708,69154.0,69143.0,0.02156071]
[1730426830014,0.22060708,69154.0,69137.0,0.38168]
[1730426830015,0.527,69156.0,69144.0,0.21560708]
[1730426830211,0.527,69156.0,69155.0,0.144602]
[1730426830476,0.22060708,69166.0,69155.0,0.144602]
[1730426830688,0.22060708,69166.0,69159.0,0.144593]
[1730426830838,0.144586,69163.0,69147.0,0.005]
[1730426831046,0.21560708,69159.0,69148.0,0.01434553]
[1730426831240,0.289227,69150.0,69137.0,0.0924]
[1730426831456,0.005,69153.0,69137.0,0.0924]
[1730426831457,0.289217,69152.0,69141.0,0.21560708]
[1730426831646,0.289217,69152.0,69137.0,0.0924]
[1730426831647,0.289223,69151.0,69137.0,0.0924]
[1730426831820,0.13845525,69152.0,69137.0,0.237039]
[1730426831821,0.22060708,69150.0,69137.0,0.237039]
[1730426832039,0.22060708,69150.0,69137.0,0.19560501]
[1730426832264,0.005,69147.0,69129.0,0.000818]
[1730426832477,0.13845525,69149.0,69129.0,0.000818]
[1730426832478,0.144642,69136.0,69129.0,0.000818]
[1730426834439,0.144642,69136.0,69129.0,0.145474]
[1730426835089,0.144642,69136.0,69129.0,0.000818]
[1730426835439,0.28809725,69136.0,69129.0,0.000818]
[1730426836144,0.149642,69136.0,69129.0,0.000818]
[1730426836341,0.149642,69136.0,69131.0,0.144652]
[1730426836342,0.005,69136.0,69131.0,0.144652]
[1730426837077,0.532,69140.0,69129.0,0.000818]
[1730426837278,0.21560708,69139.0,69129.0,0.000818]
[1730426837488,0.149642,69136.0,69130.0,0.144654]
[1730426837687,0.149642,69136.0,69129.0,0.000818]
[1730426838116,0.28809725,69136.0,69129.0,0.000818]
[1730426839074,0.38809725,69136.0,69129.0,0.000818]
[1730426839286,0.13845525,69136.0,69129.0,0.000818]
[1730426839492,0.28309725,69136.0,69129.0,0.000818]
[1730426840868,0.29204238,69136.0,69129.0,0.000818]
[1730426841071,0.15358713,69136.0,69129.0,0.005818]
[1730426841271,0.29204238,69136.0,69129.0,0.000818]
[1730426844000,0.39204238,69136.0,69129.0,0.000818]
[1730426844751,0.66132808,69136.0,69129.0,0.000818]
[1730426845058,0.66632808,69136.0,69129.0,0.000818]
[1730426845485,0.67943887,69136.0,69129.0,0.000818]
[1730426845847,0.67443887,69136.0,69129.0,0.000818]
[1730426846209,0.66132808,69136.0,69129.0,0.000818]
[1730426850759,0.28309725,69136.0,69129.0,0.000818]
[1730426851586,0.144642,69136.0,69130.0,0.005]
[1730426852217,0.14452629,69136.0,69130.0,0.005]
[1730426852542,0.28298154,69136.0,69129.0,0.000818]
[1730426853150,0.14452629,69136.0,69129.0,0.000818]
[1730426853381,0.14452629,69136.0,69129.0,0.005818]
[1730426853750,0.14452629,69136.0,69129.0,0.000818]
[1730426854189,0.14452629,69136.0,69129.0,0.005818]
[1730426854612,0.14452629,69136.0,69129.0,0.000818]
[1730426854840,0.14452629,69136.0,69129.0,0.005818]
[1730426856405,0.527,69140.0,69137.0,0.005]
[1730426856603,0.527,69140.0,69139.0,0.005]
[1730426856806,0.001642,69146.0,69139.0,0.005]
[1730426856807,0.001642,69146.0,69145.0,0.005]
[1730426857033,0.27849742,69184.0,69145.0,0.005]
[1730426857034,0.144569,69171.0,69170.0,0.005]
[1730426857242,0.144569,69171.0,69159.0,0.0933]
[1730426857243,0.21560708,69172.0,69171.0,0.005]
[1730426857440,0.36017408,69172.0,69171.0,0.005]
[1730426857611,0.144567,69172.0,69171.0,0.005]
[1730426858280,0.144567,69172.0,69159.0,0.0933]
[1730426858281,0.144573,69169.0,69168.0,0.005]
[1730426858460,0.144573,69169.0,69159.0,0.0933]
[1730426858461,0.144579,69166.0,69165.0,0.005]
[1730426860184,0.144574,69169.0,69168.0,0.005]
[1730426860391,0.26951861,69189.0,69176.0,0.005]
[1730426860584,0.144562,69174.0,69173.0,0.005]
[1730426860794,0.28912,69176.0,69170.0,0.005]
[1730426861016,0.527,69177.0,69170.0,0.005]
[1730426861230,0.289121,69175.0,69172.0,0.005]
[1730426861555,0.144558,69176.0,69175.0,0.005]
[1730426864533,0.671556,69177.0,69176.0,0.005]
[1730426865194,0.527,69177.0,69176.0,0.005]
[1730426865973,0.144565,69173.0,69172.0,0.005]
[1730426866405,0.144569,69171.0,69170.0,0.005]
[1730426866802,0.144571,69170.0,69169.0,0.005]
[1730426867211,0.289134,69172.0,69166.0,0.005]
[1730426867417,0.005,69155.0,69136.0,0.005]
[1730426867619,0.005,69155.0,69150.0,0.21560708]
[1730426867620,0.51412961,69151.0,69150.0,0.21560708]
[1730426867952,0.51412961,69151.0,69141.0,0.21560708]
[1730426867953,0.144629,69142.0,69141.0,0.21560708]
[1730426868185,0.28308425,69142.0,69141.0,0.21560708]
[1730426868407,0.28308425,69142.0,69135.0,0.000818]
[1730426868408,0.144642,69136.0,69135.0,0.000818]
[1730426868610,0.81009725,69136.0,69135.0,0.000818]
[1730426870342,0.91009725,69136.0,69135.0,0.000818]
[1730426872534,0.91509725,69136.0,69135.0,0.000818]
[1730426873629,1.16509725,69136.0,69135.0,0.000818]
[1730426874321,0.91509725,69136.0,69135.0,0.000818]
[1730426875006,1.16509725,69136.0,69135.0,0.000818]
[1730426878216,0.91509725,69136.0,69135.0,0.000818]
[1730426878433,0.81509725,69136.0,69135.0,0.000818]
[1730426878652,0.98933696,69136.0,69135.0,0.000818]
[1730426879137,1.23933696,69136.0,69135.0,0.000818]
[1730426880083,1.33933696,69136.0,69135.0,0.000818]
[1730426881211,0.151654,69130.0,69129.0,0.000818]
[1730426881428,0.56234896,69130.0,69129.0,0.000818]
[1730426881938,0.55734896,69130.0,69129.0,0.000818]
[1730426882159,0.56234896,69130.0,69129.0,0.000818]
[1730426884514,0.57112572,69130.0,69129.0,0.000818]
[1730426886297,0.56612572,69130.0,69129.0,0.000818]
[1730426886496,0.57112572,69130.0,69129.0,0.000818]
[1730426892219,0.56612572,69130.0,69129.0,0.000818]